[Event "*** SCC Grand Prix: Titled Tuesday Blitz"]
[Site "Chess.com"]
[Date "2020.07.21"]
[Round "1"]
[White "Chuchofrio1"]
[Black "bgfbfbgfbgfgf"]
[Result "0-1"]
[WhiteElo "2300"]
[BlackElo "2639"]
[TimeControl "180+1"]
[EndTime "10:05:48 PDT"]
[Termination "bgfbfbgfbgfgf won by resignation"]

1. d4 {[%clk 0:03:00.5]} 1... Nf6 {[%clk 0:02:59.6]} 2. c4 {[%clk 0:02:59.9]}
2... c5 {[%clk 0:02:58.9]} 3. d5 {[%clk 0:02:59.7]} 3... g6 {[%clk 0:02:58.7]}
4. Nc3 {[%clk 0:02:59.2]} 4... Bg7 {[%clk 0:02:58.5]} 5. e4 {[%clk 0:02:59.2]}
5... d6 {[%clk 0:02:59.1]} 6. f4 {[%clk 0:02:58.6]} 6... e6 {[%clk 0:02:59.7]}
7. dxe6 {[%clk 0:02:54.8]} 7... Bxe6 {[%clk 0:02:56.8]} 8. Nf3 {[%clk
0:02:54.2]} 8... O-O {[%clk 0:02:56.2]} 9. Bd3 {[%clk 0:02:54.1]} 9... a6 {[%clk
0:02:46.3]} 10. f5 {[%clk 0:02:53.7]} 10... Bd7 {[%clk 0:02:40.3]} 11. O-O
{[%clk 0:02:52.8]} 11... Nc6 {[%clk 0:02:40.3]} 12. Qe1 {[%clk 0:02:49.1]} 12...
Ng4 {[%clk 0:02:33.8]} 13. Nd5 {[%clk 0:02:46.8]} 13... Nce5 {[%clk 0:02:29]}
14. Nxe5 {[%clk 0:02:44.9]} 14... Bxe5 {[%clk 0:02:25.9]} 15. h3 {[%clk
0:02:37.5]} 15... Nh2 {[%clk 0:02:16.5]} 16. Rf4 {[%clk 0:02:07.9]} 16... Bc6
{[%clk 0:01:51.7]} 17. Kxh2 {[%clk 0:01:50.4]} 17... Bxd5 {[%clk 0:01:50.9]} 18.
exd5 {[%clk 0:01:41.8]} 18... g5 {[%clk 0:01:50.9]} 19. Qe4 {[%clk 0:01:17]}
19... Qf6 {[%clk 0:01:44.8]} 20. g3 {[%clk 0:01:13.6]} 20... gxf4 {[%clk
0:01:44.3]} 21. Bxf4 {[%clk 0:01:08.8]} 21... Rae8 {[%clk 0:01:43.6]} 22. Qf3
{[%clk 0:01:07.1]} 22... Bxf4 {[%clk 0:01:43.3]} 23. Qg4+ {[%clk 0:01:02.4]}
23... Kh8 {[%clk 0:01:38]} 24. Rf1 {[%clk 0:00:52.2]} 24... Bh6 {[%clk
0:01:35.5]} 25. Qh5 {[%clk 0:00:50.8]} 25... Qxb2+ {[%clk 0:01:31.7]} 26. Kh1
{[%clk 0:00:47.6]} 26... Qf6 {[%clk 0:01:31.9]} 27. g4 {[%clk 0:00:46.6]} 27...
Re3 {[%clk 0:01:31]} 28. Bb1 {[%clk 0:00:44]} 28... Rfe8 {[%clk 0:01:25.5]} 29.
h4 {[%clk 0:00:42.4]} 29... Rh3+ {[%clk 0:01:24.8]} 30. Kg2 {[%clk 0:00:41.9]}
30... Rxh4 {[%clk 0:01:25.7]} 31. g5 {[%clk 0:00:39.2]} 31... Bxg5 {[%clk
0:01:25.7]} 32. Qf3 {[%clk 0:00:33.2]} 32... Bf4 {[%clk 0:01:25.7]} 33. Be4
{[%clk 0:00:21.4]} 33... Rh2+ {[%clk 0:01:24.8]} 34. Kg1 {[%clk 0:00:21.5]}
34... Qg5+ {[%clk 0:01:25.7]} 0-1

[Event "*** SCC Grand Prix: Titled Tuesday Blitz"]
[Site "Chess.com"]
[Date "2020.07.21"]
[Round "1"]
[White "Vladislav_Chizhikov"]
[Black "Micki-taryan"]
[Result "0-1"]
[WhiteElo "2457"]
[BlackElo "3039"]
[TimeControl "180+1"]
[EndTime "10:05:54 PDT"]
[Termination "Micki-taryan won by checkmate"]

1. e4 {[%clk 0:02:57.6]} 1... c5 {[%clk 0:02:59.3]} 2. Nf3 {[%clk 0:02:56.1]}
2... Nc6 {[%clk 0:02:59.7]} 3. b3 {[%clk 0:02:54.9]} 3... d6 {[%clk 0:02:56.9]}
4. Bb2 {[%clk 0:02:54.1]} 4... e5 {[%clk 0:02:57.8]} 5. Bb5 {[%clk 0:02:51.7]}
5... Bd7 {[%clk 0:02:57.2]} 6. d3 {[%clk 0:02:50.1]} 6... Nf6 {[%clk 0:02:52.3]}
7. Nbd2 {[%clk 0:02:47.8]} 7... Be7 {[%clk 0:02:52.5]} 8. h3 {[%clk 0:02:46.8]}
8... O-O {[%clk 0:02:52.7]} 9. Qe2 {[%clk 0:02:43.5]} 9... a6 {[%clk 0:02:52.9]}
10. Bxc6 {[%clk 0:02:42.9]} 10... Bxc6 {[%clk 0:02:53.8]} 11. Nf1 {[%clk
0:02:40.4]} 11... Re8 {[%clk 0:02:50.9]} 12. g4 {[%clk 0:02:39.4]} 12... Bf8
{[%clk 0:02:50.3]} 13. Ng3 {[%clk 0:02:39.7]} 13... b5 {[%clk 0:02:49.5]} 14. g5
{[%clk 0:02:37]} 14... Nd7 {[%clk 0:02:49.3]} 15. h4 {[%clk 0:02:36.6]} 15... d5
{[%clk 0:02:48.5]} 16. Nh2 {[%clk 0:02:35.4]} 16... c4 {[%clk 0:02:47.9]} 17.
Ng4 {[%clk 0:02:32.8]} 17... cxd3 {[%clk 0:02:46.5]} 18. cxd3 {[%clk 0:02:32.1]}
18... Nc5 {[%clk 0:02:46.9]} 19. Rd1 {[%clk 0:02:28.3]} 19... b4 {[%clk
0:02:44.7]} 20. Qf3 {[%clk 0:02:13]} 20... d4 {[%clk 0:02:36.1]} 21. Nh5 {[%clk
0:02:07.9]} 21... Re6 {[%clk 0:02:33.2]} 22. Rh3 {[%clk 0:02:01.1]} 22... a5
{[%clk 0:02:29.4]} 23. Rg3 {[%clk 0:01:53]} 23... Rg6 {[%clk 0:02:27.9]} 24. Rc1
{[%clk 0:01:44]} 24... Bb5 {[%clk 0:02:20.7]} 25. Nxe5 {[%clk 0:01:36.1]} 25...
Qe8 {[%clk 0:02:13.7]} 26. Bxd4 {[%clk 0:01:17.9]} 26... Rc8 {[%clk 0:02:05.2]}
27. Rxc5 {[%clk 0:00:51.7]} 27... Bxc5 {[%clk 0:01:36.3]} 28. Bxc5 {[%clk
0:00:39]} 28... Rxc5 {[%clk 0:01:34.5]} 29. Nxg6 {[%clk 0:00:38.8]} 29... hxg6
{[%clk 0:01:33.9]} 30. Nf4 {[%clk 0:00:32.9]} 30... Rc1+ {[%clk 0:01:33.1]} 31.
Kd2 {[%clk 0:00:33]} 31... Qc8 {[%clk 0:01:32.1]} 32. Nd5 {[%clk 0:00:31.5]}
32... Qc5 {[%clk 0:01:20.8]} 33. Qf4 {[%clk 0:00:16]} 33... Qc2+ {[%clk
0:01:17.8]} 34. Ke3 {[%clk 0:00:15.7]} 34... Qxd3# {[%clk 0:01:18.4]} 0-1

[Event "*** SCC Grand Prix: Titled Tuesday Blitz"]
[Site "Chess.com"]
[Date "2020.07.21"]
[Round "1"]
[White "Gabix_94"]
[Black "SaqoChess_Twitch"]
[Result "1-0"]
[WhiteElo "2880"]
[BlackElo "2432"]
[TimeControl "180+1"]
[EndTime "10:05:57 PDT"]
[Termination "Gabix_94 won by checkmate"]

1. c4 {[%clk 0:02:56.9]} 1... e6 {[%clk 0:02:48.5]} 2. Nc3 {[%clk 0:02:57]} 2...
d5 {[%clk 0:02:48.1]} 3. d4 {[%clk 0:02:57]} 3... Nf6 {[%clk 0:02:47.5]} 4. Nf3
{[%clk 0:02:56]} 4... Be7 {[%clk 0:02:45.8]} 5. Bf4 {[%clk 0:02:51]} 5... c5
{[%clk 0:02:45.8]} 6. cxd5 {[%clk 0:02:49.9]} 6... Nxd5 {[%clk 0:02:44.6]} 7.
Nxd5 {[%clk 0:02:49.6]} 7... Qxd5 {[%clk 0:02:44.3]} 8. e3 {[%clk 0:02:43.9]}
8... cxd4 {[%clk 0:02:42.5]} 9. Bd3 {[%clk 0:02:26.9]} 9... dxe3 {[%clk
0:02:25.2]} 10. Bxe3 {[%clk 0:02:27.8]} 10... O-O {[%clk 0:02:23.7]} 11. Qe2
{[%clk 0:02:23.7]} 11... Bb4+ {[%clk 0:02:20.6]} 12. Kf1 {[%clk 0:02:21.1]}
12... Nc6 {[%clk 0:02:18.5]} 13. Rd1 {[%clk 0:02:21.4]} 13... Qa5 {[%clk
0:02:17.5]} 14. a3 {[%clk 0:02:18.8]} 14... Be7 {[%clk 0:02:17.3]} 15. h4 {[%clk
0:02:18.5]} 15... Rd8 {[%clk 0:02:15.7]} 16. Ng5 {[%clk 0:02:16]} 16... g6
{[%clk 0:02:06.1]} 17. b4 {[%clk 0:02:05.5]} 17... Qe5 {[%clk 0:02:01.9]} 18.
Rh3 {[%clk 0:01:59.4]} 18... Nd4 {[%clk 0:01:55.8]} 19. Bxd4 {[%clk 0:01:52.5]}
19... Qxd4 {[%clk 0:01:55.5]} 20. Nxf7 {[%clk 0:01:50.2]} 20... Kxf7 {[%clk
0:01:44.4]} 21. Bxg6+ {[%clk 0:01:49.4]} 21... hxg6 {[%clk 0:01:45.1]} 22. Rxd4
{[%clk 0:01:46.9]} 22... Rxd4 {[%clk 0:01:46]} 23. Rf3+ {[%clk 0:01:47.5]} 23...
Ke8 {[%clk 0:01:42.3]} 24. Qe5 {[%clk 0:01:43.5]} 24... Rd1+ {[%clk 0:01:32.3]}
25. Ke2 {[%clk 0:01:43.7]} 25... Rd5 {[%clk 0:01:32.6]} 26. Qg7 {[%clk
0:01:39.1]} 26... b6 {[%clk 0:01:24.9]} 27. Rf7 {[%clk 0:01:34.9]} 27... Ba6+
{[%clk 0:01:21.6]} 28. Ke3 {[%clk 0:01:27.4]} 28... Rd3+ {[%clk 0:00:42.8]} 29.
Kf4 {[%clk 0:01:22.3]} 29... Bd6+ {[%clk 0:00:42.1]} 30. Kg5 {[%clk 0:01:17]}
30... Rd5+ {[%clk 0:00:39]} 31. Kxg6 {[%clk 0:01:13.1]} 31... Bd3+ {[%clk
0:00:34.4]} 32. Kh6 {[%clk 0:01:12.9]} 32... Rf5 {[%clk 0:00:21.4]} 33. Qg8+
{[%clk 0:01:10.6]} 33... Bf8+ {[%clk 0:00:20.1]} 34. Qxf8# {[%clk 0:01:11.1]}
1-0

[Event "*** SCC Grand Prix: Titled Tuesday Blitz"]
[Site "Chess.com"]
[Date "2020.07.21"]
[Round "1"]
[White "GasconJR"]
[Black "Jospem"]
[Result "0-1"]
[WhiteElo "2416"]
[BlackElo "2832"]
[TimeControl "180+1"]
[EndTime "10:05:57 PDT"]
[Termination "Jospem won by resignation"]

1. d4 {[%clk 0:03:00.9]} 1... Nf6 {[%clk 0:02:58.8]} 2. c4 {[%clk 0:03:00.1]}
2... e6 {[%clk 0:02:59.2]} 3. Nf3 {[%clk 0:02:58.6]} 3... Bb4+ {[%clk
0:02:59.2]} 4. Bd2 {[%clk 0:02:58.4]} 4... c5 {[%clk 0:02:56]} 5. Bxb4 {[%clk
0:02:46.3]} 5... cxb4 {[%clk 0:02:56.9]} 6. g3 {[%clk 0:02:45.5]} 6... b6 {[%clk
0:02:57.1]} 7. Bg2 {[%clk 0:02:45.3]} 7... Bb7 {[%clk 0:02:57.6]} 8. O-O {[%clk
0:02:45.3]} 8... O-O {[%clk 0:02:58.2]} 9. Nbd2 {[%clk 0:02:31.7]} 9... a5
{[%clk 0:02:57.7]} 10. Re1 {[%clk 0:02:22.2]} 10... d6 {[%clk 0:02:57]} 11. e4
{[%clk 0:02:19.6]} 11... Qc7 {[%clk 0:02:44.8]} 12. Rc1 {[%clk 0:02:00.6]} 12...
e5 {[%clk 0:02:37.1]} 13. Qc2 {[%clk 0:01:06]} 13... Nbd7 {[%clk 0:02:36.4]} 14.
Bh3 {[%clk 0:01:03]} 14... Rfe8 {[%clk 0:02:33.1]} 15. Bxd7 {[%clk 0:00:57.1]}
15... Nxd7 {[%clk 0:02:32.6]} 16. d5 {[%clk 0:00:58]} 16... Nc5 {[%clk
0:02:29.6]} 17. Nb3 {[%clk 0:00:56.3]} 17... Na6 {[%clk 0:02:29.6]} 18. Nbd2
{[%clk 0:00:53.5]} 18... Rf8 {[%clk 0:02:27.6]} 19. h4 {[%clk 0:00:47.4]} 19...
Bc8 {[%clk 0:02:19]} 20. Qd3 {[%clk 0:00:32.3]} 20... f5 {[%clk 0:02:12.4]} 21.
Ng5 {[%clk 0:00:27.1]} 21... Nc5 {[%clk 0:02:11.9]} 22. Qe2 {[%clk 0:00:25]}
22... h6 {[%clk 0:02:11.8]} 23. Ne6 {[%clk 0:00:08.9]} 23... Nxe6 {[%clk
0:02:11.8]} 24. dxe6 {[%clk 0:00:09.8]} 24... Bxe6 {[%clk 0:02:12.6]} 25. exf5
{[%clk 0:00:10.1]} 25... Rxf5 {[%clk 0:02:13.3]} 26. Ne4 {[%clk 0:00:09.9]}
26... Rd8 {[%clk 0:02:01.6]} 27. Red1 {[%clk 0:00:10.1]} 27... Rf7 {[%clk
0:01:54.8]} 28. b3 {[%clk 0:00:09.2]} 28... Bf5 {[%clk 0:01:52.7]} 29. Nd2
{[%clk 0:00:08.5]} 29... Rdf8 {[%clk 0:01:51.9]} 30. Nf1 {[%clk 0:00:08.6]}
30... Bh3 {[%clk 0:01:44.8]} 31. Ne3 {[%clk 0:00:08.2]} 31... Rxf2 {[%clk
0:01:44.5]} 32. Qxf2 {[%clk 0:00:09.1]} 32... Rxf2 {[%clk 0:01:44.8]} 33. Kxf2
{[%clk 0:00:09.7]} 33... Qf7+ {[%clk 0:01:42.5]} 34. Ke2 {[%clk 0:00:10.1]}
34... Qg6 {[%clk 0:01:43]} 35. Rd2 {[%clk 0:00:04.3]} 35... Qxg3 {[%clk
0:01:34.5]} 36. Rxd6 {[%clk 0:00:04.2]} 36... e4 {[%clk 0:01:35.1]} 37. Re1
{[%clk 0:00:02.8]} 37... Qxd6 {[%clk 0:01:34.8]} 0-1

[Event "*** SCC Grand Prix: Titled Tuesday Blitz"]
[Site "Chess.com"]
[Date "2020.07.21"]
[Round "1"]
[White "gena217"]
[Black "vanyakuba"]
[Result "1-0"]
[WhiteElo "2908"]
[BlackElo "2444"]
[TimeControl "180+1"]
[EndTime "10:05:59 PDT"]
[Termination "gena217 won by resignation"]

1. e4 {[%clk 0:03:00.8]} 1... d5 {[%clk 0:02:58.3]} 2. exd5 {[%clk 0:03:01.7]}
2... Qxd5 {[%clk 0:02:58.7]} 3. Nc3 {[%clk 0:03:00.9]} 3... Qa5 {[%clk
0:02:59.1]} 4. d4 {[%clk 0:02:59.5]} 4... Nf6 {[%clk 0:02:55.5]} 5. Nf3 {[%clk
0:03:00.1]} 5... Bg4 {[%clk 0:02:55.1]} 6. h3 {[%clk 0:02:59.6]} 6... Bh5 {[%clk
0:02:55.1]} 7. g4 {[%clk 0:02:59]} 7... Bg6 {[%clk 0:02:55.7]} 8. Ne5 {[%clk
0:02:58.4]} 8... e6 {[%clk 0:02:54.8]} 9. Bg2 {[%clk 0:02:57.2]} 9... c6 {[%clk
0:02:54.4]} 10. O-O {[%clk 0:02:57]} 10... Nbd7 {[%clk 0:02:53.1]} 11. f4 {[%clk
0:02:43.5]} 11... O-O-O {[%clk 0:02:44.1]} 12. Qe2 {[%clk 0:02:37.4]} 12... Bb4
{[%clk 0:01:44.4]} 13. Bd2 {[%clk 0:02:29.6]} 13... Qb6 {[%clk 0:01:43.2]} 14.
Be3 {[%clk 0:02:24.2]} 14... Qa5 {[%clk 0:01:41.1]} 15. Nc4 {[%clk 0:02:04]}
15... Qa6 {[%clk 0:01:31.3]} 16. a3 {[%clk 0:01:54.8]} 16... Be7 {[%clk
0:00:49.6]} 17. Rf2 {[%clk 0:01:31.1]} 17... Rhe8 {[%clk 0:00:40.4]} 18. Bf1
{[%clk 0:01:02.9]} 18... h6 {[%clk 0:00:32]} 19. Qe1 {[%clk 0:00:59.1]} 19... b5
{[%clk 0:00:20.6]} 20. Ne5 {[%clk 0:00:58.3]} 20... Nxe5 {[%clk 0:00:20.3]} 21.
dxe5 {[%clk 0:00:59.2]} 21... Nd5 {[%clk 0:00:20.5]} 22. Nxd5 {[%clk 0:00:56.1]}
22... Rxd5 {[%clk 0:00:19.8]} 23. a4 {[%clk 0:00:56.5]} 23... Bc5 {[%clk
0:00:13.4]} 24. Bxc5 {[%clk 0:00:53.3]} 24... Qb6 {[%clk 0:00:14]} 25. Bxb6
{[%clk 0:00:53.3]} 1-0

[Event "*** SCC Grand Prix: Titled Tuesday Blitz"]
[Site "Chess.com"]
[Date "2020.07.21"]
[Round "1"]
[White "GracefulYear"]
[Black "ShimanovAlex"]
[Result "0-1"]
[WhiteElo "2406"]
[BlackElo "2809"]
[TimeControl "180+1"]
[EndTime "10:05:59 PDT"]
[Termination "ShimanovAlex won by checkmate"]

1. d4 {[%clk 0:03:00.9]} 1... Nf6 {[%clk 0:02:58]} 2. Nf3 {[%clk 0:02:59]} 2...
g6 {[%clk 0:02:56.1]} 3. c4 {[%clk 0:02:55.1]} 3... Bg7 {[%clk 0:02:54.6]} 4. g3
{[%clk 0:02:54.5]} 4... O-O {[%clk 0:02:53.3]} 5. Bg2 {[%clk 0:02:55.4]} 5... d6
{[%clk 0:02:53.1]} 6. O-O {[%clk 0:02:43.4]} 6... Ne4 {[%clk 0:02:51.9]} 7. Nc3
{[%clk 0:02:40.9]} 7... Nxc3 {[%clk 0:02:43]} 8. bxc3 {[%clk 0:02:39]} 8... e5
{[%clk 0:02:43.9]} 9. Bb2 {[%clk 0:02:37.6]} 9... Nc6 {[%clk 0:02:32.2]} 10. Qc2
{[%clk 0:02:24]} 10... Qe7 {[%clk 0:02:28.4]} 11. e4 {[%clk 0:02:21]} 11... Bg4
{[%clk 0:02:24.9]} 12. Rad1 {[%clk 0:02:17.9]} 12... b6 {[%clk 0:02:23.4]} 13.
Ba3 {[%clk 0:02:17.9]} 13... exd4 {[%clk 0:02:20.7]} 14. cxd4 {[%clk 0:02:16.7]}
14... Bxf3 {[%clk 0:02:19.8]} 15. Bxf3 {[%clk 0:02:16.5]} 15... Nxd4 {[%clk
0:02:20.2]} 16. Qd3 {[%clk 0:02:16.1]} 16... Nxf3+ {[%clk 0:02:16.8]} 17. Qxf3
{[%clk 0:02:17]} 17... Rfe8 {[%clk 0:02:16.7]} 18. Rfe1 {[%clk 0:02:14.9]} 18...
Qe6 {[%clk 0:02:13.8]} 19. Qe2 {[%clk 0:02:14.7]} 19... h5 {[%clk 0:02:09.9]}
20. Rc1 {[%clk 0:02:01.5]} 20... Qg4 {[%clk 0:02:06.1]} 21. Qxg4 {[%clk
0:01:58.3]} 21... hxg4 {[%clk 0:02:07]} 22. Rc2 {[%clk 0:01:57.6]} 22... Re6
{[%clk 0:02:05.8]} 23. Bb2 {[%clk 0:01:57.5]} 23... Bxb2 {[%clk 0:01:59.7]} 24.
Rxb2 {[%clk 0:01:58.4]} 24... Rae8 {[%clk 0:01:59.8]} 25. Rc2 {[%clk 0:01:59.3]}
25... Rxe4 {[%clk 0:01:58.2]} 26. Rxe4 {[%clk 0:01:59.1]} 26... Rxe4 {[%clk
0:01:59.1]} 27. Kg2 {[%clk 0:01:59.7]} 27... f5 {[%clk 0:01:57.8]} 28. f3 {[%clk
0:01:59.8]} 28... gxf3+ {[%clk 0:01:56.8]} 29. Kxf3 {[%clk 0:02:00.7]} 29... Kf7
{[%clk 0:01:57.1]} 30. h3 {[%clk 0:01:59.3]} 30... Re1 {[%clk 0:01:52.6]} 31. g4
{[%clk 0:01:57.1]} 31... fxg4+ {[%clk 0:01:50.7]} 32. hxg4 {[%clk 0:01:58]}
32... Kf6 {[%clk 0:01:50]} 33. Kg3 {[%clk 0:01:57.7]} 33... Re3+ {[%clk
0:01:49.5]} 34. Kf4 {[%clk 0:01:57.8]} 34... Re5 {[%clk 0:01:46.8]} 35. Rh2
{[%clk 0:01:52.6]} 35... Rc5 {[%clk 0:01:44.6]} 36. g5+ {[%clk 0:01:47.2]} 36...
Rxg5 {[%clk 0:01:43.5]} 37. Rh7 {[%clk 0:01:46.6]} 37... Rc5 {[%clk 0:01:43.9]}
38. a4 {[%clk 0:01:43.1]} 38... Rxc4+ {[%clk 0:01:43]} 39. Ke3 {[%clk 0:01:44]}
39... a5 {[%clk 0:01:42.4]} 40. Kd3 {[%clk 0:01:43.4]} 40... Rc5 {[%clk
0:01:42.4]} 41. Kd4 {[%clk 0:01:43.4]} 41... g5 {[%clk 0:01:41.4]} 42. Rh8
{[%clk 0:01:43]} 42... Kg7 {[%clk 0:01:40.2]} 43. Re8 {[%clk 0:01:41]} 43... g4
{[%clk 0:01:39.8]} 44. Re4 {[%clk 0:01:40.5]} 44... Rg5 {[%clk 0:01:38.4]} 45.
Re7+ {[%clk 0:01:40.2]} 45... Kf6 {[%clk 0:01:38.4]} 46. Rxc7 {[%clk 0:01:40.4]}
46... g3 {[%clk 0:01:38.8]} 47. Rc1 {[%clk 0:01:40.9]} 47... g2 {[%clk 0:01:39]}
48. Rg1 {[%clk 0:01:41.8]} 48... Ke6 {[%clk 0:01:38.3]} 49. Kc4 {[%clk
0:01:42.2]} 49... Kd7 {[%clk 0:01:35.2]} 50. Kb3 {[%clk 0:01:39.7]} 50... Rg4
{[%clk 0:01:33.9]} 51. Ka3 {[%clk 0:01:38.8]} 51... d5 {[%clk 0:01:33.9]} 52.
Kb2 {[%clk 0:01:36.5]} 52... Kd6 {[%clk 0:01:33.9]} 53. Kc3 {[%clk 0:01:36]}
53... Kc5 {[%clk 0:01:32.5]} 54. Kd3 {[%clk 0:01:36.9]} 54... Rg3+ {[%clk
0:01:32.3]} 55. Kc2 {[%clk 0:01:36.4]} 55... d4 {[%clk 0:01:32.3]} 56. Kd2
{[%clk 0:01:35.8]} 56... Kd5 {[%clk 0:01:32.4]} 57. Kc2 {[%clk 0:01:36.7]} 57...
d3+ {[%clk 0:01:31.1]} 58. Kd2 {[%clk 0:01:37.6]} 58... Kd4 {[%clk 0:01:31.1]}
59. Rf1 {[%clk 0:01:31]} 59... Re3 {[%clk 0:01:16.6]} 60. Rf4+ {[%clk
0:01:28.6]} 60... Re4 {[%clk 0:01:16.3]} 61. Rf1 {[%clk 0:01:21.3]} 61... Re2+
{[%clk 0:01:15.3]} 62. Kd1 {[%clk 0:01:21.3]} 62... gxf1=Q# {[%clk 0:01:15.6]}
0-1

[Event "*** SCC Grand Prix: Titled Tuesday Blitz"]
[Site "Chess.com"]
[Date "2020.07.21"]
[Round "1"]
[White "Agibileg"]
[Black "crescentmoon2411"]
[Result "0-1"]
[WhiteElo "2414"]
[BlackElo "2830"]
[TimeControl "180+1"]
[EndTime "10:06:03 PDT"]
[Termination "crescentmoon2411 won by resignation"]

1. d4 {[%clk 0:03:00.6]} 1... Nf6 {[%clk 0:02:59.7]} 2. c4 {[%clk 0:03:00.6]}
2... e6 {[%clk 0:02:59.9]} 3. Nc3 {[%clk 0:03:00.9]} 3... Bb4 {[%clk 0:02:59.7]}
4. f3 {[%clk 0:03:00.4]} 4... d5 {[%clk 0:02:52.3]} 5. a3 {[%clk 0:02:59.2]}
5... Bxc3+ {[%clk 0:02:51.1]} 6. bxc3 {[%clk 0:02:59.5]} 6... O-O {[%clk
0:02:47.1]} 7. cxd5 {[%clk 0:02:59.8]} 7... Nxd5 {[%clk 0:02:44.3]} 8. Qc2
{[%clk 0:02:48.6]} 8... c5 {[%clk 0:02:42.8]} 9. e4 {[%clk 0:02:48.7]} 9... Nb6
{[%clk 0:02:40.9]} 10. Be3 {[%clk 0:02:46.6]} 10... Nc6 {[%clk 0:02:38.1]} 11.
Rd1 {[%clk 0:02:46.8]} 11... cxd4 {[%clk 0:02:38.4]} 12. cxd4 {[%clk 0:02:46.8]}
12... Bd7 {[%clk 0:02:38.1]} 13. Bd3 {[%clk 0:02:44.3]} 13... Na5 {[%clk
0:02:34.5]} 14. Ne2 {[%clk 0:02:42.8]} 14... Ba4 {[%clk 0:02:34]} 15. Qb1 {[%clk
0:02:39.7]} 15... Bxd1 {[%clk 0:02:33.8]} 16. Qxd1 {[%clk 0:02:40.6]} 16... Nbc4
{[%clk 0:02:22.5]} 17. Bf2 {[%clk 0:02:39.1]} 17... Nb2 {[%clk 0:02:20.4]} 18.
Qd2 {[%clk 0:02:37.7]} 18... Nac4 {[%clk 0:02:17.8]} 19. Bxc4 {[%clk 0:02:32.2]}
19... Nxc4 {[%clk 0:02:18.7]} 20. Qd3 {[%clk 0:02:27.2]} 20... Qa5+ {[%clk
0:02:17.7]} 21. Kf1 {[%clk 0:02:27.6]} 21... Rac8 {[%clk 0:02:14.5]} 22. Be1
{[%clk 0:02:26.8]} 22... Qa6 {[%clk 0:02:06.9]} 23. Kf2 {[%clk 0:02:26]} 23...
Rfd8 {[%clk 0:01:56.9]} 24. Bb4 {[%clk 0:02:23.1]} 24... Nb2 {[%clk 0:01:37.3]}
25. Qd2 {[%clk 0:02:16.3]} 25... Nd3+ {[%clk 0:01:36.3]} 26. Kg3 {[%clk
0:02:14.6]} 26... Nxb4 {[%clk 0:01:36.2]} 27. axb4 {[%clk 0:02:15.5]} 27... Rc4
{[%clk 0:01:33]} 28. Rb1 {[%clk 0:02:12.5]} 28... h6 {[%clk 0:01:31.2]} 29. b5
{[%clk 0:02:12.2]} 29... Qa4 {[%clk 0:01:23.9]} 30. b6 {[%clk 0:01:59.7]} 30...
a6 {[%clk 0:01:21.7]} 31. Qf4 {[%clk 0:01:53.6]} 31... Rc2 {[%clk 0:01:14.5]}
32. Re1 {[%clk 0:01:40.5]} 32... Qb4 {[%clk 0:01:13.3]} 33. Kf2 {[%clk
0:01:39.4]} 33... Qxd4+ {[%clk 0:01:13.2]} 34. Kf1 {[%clk 0:01:32.4]} 34... Qxb6
{[%clk 0:01:12.6]} 35. h4 {[%clk 0:01:28.5]} 35... Rdd2 {[%clk 0:01:08.2]} 36.
h5 {[%clk 0:01:27.1]} 36... Qb5 {[%clk 0:01:05.8]} 37. Qe3 {[%clk 0:01:27.6]}
37... a5 {[%clk 0:01:04.9]} 38. e5 {[%clk 0:01:20.8]} 38... a4 {[%clk
0:01:02.8]} 39. f4 {[%clk 0:01:17.1]} 39... a3 {[%clk 0:01:02.4]} 40. f5 {[%clk
0:01:18]} 40... exf5 {[%clk 0:01:00.1]} 41. e6 {[%clk 0:01:18.2]} 41... Rxe2
{[%clk 0:00:55]} 42. exf7+ {[%clk 0:01:17.8]} 42... Kxf7 {[%clk 0:00:54.6]} 43.
Rxe2 {[%clk 0:01:15.6]} 43... Qxe2+ {[%clk 0:00:54.2]} 44. Qxe2 {[%clk
0:01:16.5]} 44... Rxe2 {[%clk 0:00:55.1]} 0-1

[Event "*** SCC Grand Prix: Titled Tuesday Blitz"]
[Site "Chess.com"]
[Date "2020.07.21"]
[Round "1"]
[White "Emp3rador"]
[Black "PattyCastillo"]
[Result "1-0"]
[WhiteElo "2481"]
[BlackElo "1955"]
[TimeControl "180+1"]
[EndTime "10:06:03 PDT"]
[Termination "Emp3rador won on time"]

1. e4 {[%clk 0:02:57.4]} 1... c5 {[%clk 0:02:57.8]} 2. Nf3 {[%clk 0:02:57.4]}
2... d6 {[%clk 0:02:57.4]} 3. Bb5+ {[%clk 0:02:57.1]} 3... Nd7 {[%clk
0:02:56.2]} 4. d4 {[%clk 0:02:57]} 4... cxd4 {[%clk 0:02:55.4]} 5. Qxd4 {[%clk
0:02:57.4]} 5... a6 {[%clk 0:02:53.3]} 6. Bxd7+ {[%clk 0:02:57.2]} 6... Bxd7
{[%clk 0:02:52.5]} 7. Nc3 {[%clk 0:02:57.4]} 7... Nf6 {[%clk 0:02:52.4]} 8. Bg5
{[%clk 0:02:57.3]} 8... e6 {[%clk 0:02:51.9]} 9. O-O-O {[%clk 0:02:57.2]} 9...
Be7 {[%clk 0:02:45.2]} 10. e5 {[%clk 0:02:57]} 10... dxe5 {[%clk 0:02:17.2]} 11.
Nxe5 {[%clk 0:02:56.9]} 11... Bc6 {[%clk 0:01:57.8]} 12. Nxc6 {[%clk 0:02:56.6]}
12... bxc6 {[%clk 0:01:53.7]} 13. Qc4 {[%clk 0:02:51.2]} 13... Qc7 {[%clk
0:01:40.2]} 14. Bf4 {[%clk 0:02:50.2]} 14... Qb7 {[%clk 0:01:38.6]} 15. Be5
{[%clk 0:02:22.7]} 15... O-O {[%clk 0:01:36.3]} 16. Ne4 {[%clk 0:02:22.8]} 16...
Nxe4 {[%clk 0:01:25]} 17. Qxe4 {[%clk 0:02:22.6]} 17... Rfd8 {[%clk 0:01:20]}
18. a3 {[%clk 0:02:13.6]} 18... Qb5 {[%clk 0:01:10.4]} 19. f4 {[%clk 0:02:08.9]}
19... c5 {[%clk 0:00:54.9]} 20. g3 {[%clk 0:01:56.9]} 20... c4 {[%clk
0:00:54.4]} 21. h4 {[%clk 0:01:42.5]} 21... Rac8 {[%clk 0:00:52.9]} 22. h5
{[%clk 0:01:42.1]} 22... c3 {[%clk 0:00:47.5]} 23. Rxd8+ {[%clk 0:01:35.8]}
23... Rxd8 {[%clk 0:00:45.5]} 24. Bxc3 {[%clk 0:01:34.4]} 24... Rc8 {[%clk
0:00:23]} 25. Qe5 {[%clk 0:01:33.4]} 25... Bf8 {[%clk 0:00:13.4]} 26. Qxb5
{[%clk 0:01:32.9]} 26... axb5 {[%clk 0:00:14.3]} 27. Rd1 {[%clk 0:01:27.8]}
27... h6 {[%clk 0:00:13.1]} 28. Rd3 {[%clk 0:01:26.9]} 28... Kh7 {[%clk
0:00:10]} 29. Kd2 {[%clk 0:01:24.5]} 29... g6 {[%clk 0:00:08.8]} 30. Rd7 {[%clk
0:01:23.2]} 30... g5 {[%clk 0:00:04.7]} 31. Rxf7+ {[%clk 0:01:22.2]} 31... Kg8
{[%clk 0:00:02.7]} 32. Rf6 {[%clk 0:01:22.6]} 1-0